Cogmind - Beta 12 @@@ ROGUE MODE // 2023.05.11 @ 18:46:45 Player: Mr Goldstein Result: Destroyed by Tracker with Linked Autogun Performance ------------- Evolutions (7) 3500 Regions Visited (29) 5800 Robots Destroyed (22) 110 Value Destroyed (605) 605 Prototype IDs (219) 4380 Alien Tech Used (2) 400 Bonus (9237) 9237 TOTAL SCORE: 24032 Bonus ------- Pacifist 634 High Alert Combat Kills 19 Follower Combat Kills 1017 Network Hubs Disabled 800 Met Data Miner 300 Used Data Conduit 3000 Met Imprinter 300 Was Imprinted 300 Met Zhirov 300 A7 Reached Mainframe 300 Pursued by Intercept 500 Acquired SGEMP 2000 Friendly Fire -233 Cogmind --------- Core Integrity 0/1300 Matter 125/300 Energy 98/100 System Corruption 0% Temperature Cool (0) Movement Core (50) Location -3/Testing Parts ------- > --- POWER (1) -------- (None) > --- PROPULSION (9) --- (None) > --- UTILITY (9) ------ (None) > --- WEAPON (2) ------- (None) > --- INVENTORY (5) ---- Antimatter Reactor Heavy Antimatter Reactor Advanced Micro-nuke Launcher SGEMP Prototype Peak State ------------ > --- POWER ------------ Heavy Antimatter Reactor > --- PROPULSION ------- VTOL Module VTOL Module Improved VTOL Module Improved VTOL Module Cooled VTOL Module Nuclear Pulse Thruster Field Propulsion Array > --- UTILITY ---------- Advanced Heat Sink Launcher Guidance Computer Improved Medium Armor Plating Layered Light Armor Plating Advanced Hacking Suite System Shield Improved System Shield Improved System Shield > --- WEAPON ----------- Molecular Deconstructor > --- INVENTORY -------- Antimatter Reactor Transdimensional Reconstructor Long-range Missile Launcher [Rating: 100] Favorites ----------- Power Hybrid Antimatter Reactor Engine Makeshift Power Source Power Core Nuclear Core Reactor Hybrid Antimatter Reactor Propulsion Improved VTOL Module Treads Light Treads Flight Unit Improved VTOL Module Utility Launcher Guidance Computer Device Advanced Heat Sink Processor Launcher Guidance Computer Hackware Improved System Shield Protection Improved Power Shielding Weapon Makeshift Axe Energy Cannon Null Cannon Launcher Missile Launcher Special Weapon Molecular Deconstructor Impact Weapon Great Maul Slashing Weapon Makeshift Axe Build | -11 -10 -10 -10 -9 -8 -7 -7 -7 -7 -6 -6 -6 -6 -6 -6 -6 -5 -5 -5 -5 -5 -4 -4 -4 -4 -4 -4 -3 -3 ------- Run | Jun Mat Min Exi Min Mat Fac Low Low Zio Pro Fac Was Fac Low Low Dat Pro Fac Upp Upp Zhi Pro Fac Ext Cet Arc Hub Res Tes Slots Evolved 14 | . . . . . 4 2 . . . . 2 . . . . . . 2 . . . . 2 . . . . 2 . Power . | . . . . . . . . . . . . . . . . . . . . . . . . . . . . . . Propulsion 7 | . . . . . 3 . . . . . 1 . . . . . . 1 . . . . 1 . . . . 1 . Utility 7 | . . . . . 1 2 . . . . 1 . . . . . . 1 . . . . 1 . . . . 1 . Weapon . | . . . . . . . . . . . . . . . . . . . . . . . . . . . . . . Parts Attached 84 | 2 . . . 1 . 15 2 4 . 5 5 4 3 1 1 . 3 . 2 2 4 . 7 7 . 1 5 4 6 Power 13 | . . . . . . 2 . 1 . 1 2 1 . . . . . . 1 . . . 4 . . . . 1 . Engine 6 | . . . . . . . . 1 . 1 2 . . . . . . . 1 . . . 1 . . . . . . Core 3 | . . . . . . 2 . . . . . . . . . . . . . . . . 1 . . . . . . Reactor 4 | . . . . . . . . . . . . 1 . . . . . . . . . . 2 . . . . 1 . Propulsion 23 | 2 . . . . . 9 . . . 3 1 2 . . . . . . . 1 . . 1 2 . . . 2 . Treads 2 | 2 . . . . . . . . . . . . . . . . . . . . . . . . . . . . . Leg . | . . . . . . . . . . . . . . . . . . . . . . . . . . . . . . Wheel . | . . . . . . . . . . . . . . . . . . . . . . . . . . . . . . Hover . | . . . . . . . . . . . . . . . . . . . . . . . . . . . . . . Flight 21 | . . . . . . 9 . . . 3 1 2 . . . . . . . 1 . . 1 2 . . . 2 . Utility 22 | . . . . 1 . 2 2 2 . . 1 . 2 1 1 . 1 . 1 . 2 . 2 1 . . . 1 2 Device 5 | . . . . 1 . . . . . . . . . 1 1 . . . . . . . 1 . . . . . 1 Storage . | . . . . . . . . . . . . . . . . . . . . . . . . . . . . . . Processor 4 | . . . . . . . 2 . . . 1 . . . . . . . . . . . . . . . . 1 . Hackware 8 | . . . . . . . . 1 . . . . 2 . . . 1 . 1 . 1 . . 1 . . . . 1 Protection 5 | . . . . . . 2 . 1 . . . . . . . . . . . . 1 . 1 . . . . . . Artifact . | . . . . . . . . . . . . . . . . . . . . . . . . . . . . . . Weapon 26 | . . . . . . 2 . 1 . 1 1 1 1 . . . 2 . . 1 2 . . 4 . 1 5 . 4 Energy Gun . | . . . . . . . . . . . . . . . . . . . . . . . . . . . . . . Energy Cannon 2 | . . . . . . . . . . . . . . . . . . . . . . . . . . . . . 2 Ballistic Gun . | . . . . . . . . . . . . . . . . . . . . . . . . . . . . . . Ballistic Cannon . | . . . . . . . . . . . . . . . . . . . . . . . . . . . . . . Launcher 11 | . . . . . . 2 . . . 1 . . 1 . . . 1 . . 1 1 . . 2 . . 1 . 1 Special Weapon 8 | . . . . . . . . . . . . . . . . . 1 . . . 1 . . 2 . 1 3 . . Impact Weapon 1 | . . . . . . . . . . . . 1 . . . . . . . . . . . . . . . . . Slashing Weapon 4 | . . . . . . . . 1 . . 1 . . . . . . . . . . . . . . . 1 . 1 Piercing Weapon . | . . . . . . . . . . . . . . . . . . . . . . . . . . . . . . Special Melee Weapon . | . . . . . . . . . . . . . . . . . . . . . . . . . . . . . . Unidentified Prototypes 8 | . . . . 1 . 2 . . . . . . . . . . 1 . . . 1 . . . . . 1 . 2 Corrupted Parts 1 | . . . . . . . . . . . . . . . . . . . . . . . . . . . 1 . . System Corruption 10 | . . . . . . . . . . . . . . . . . . . . . . . . . . . 10 . . Parts Lost 41 | . . . . 1 1 5 . . . 2 . . 2 . . 2 1 . 3 1 . . . 1 . . 12 2 8 Power 3 | . . . . . . 1 . . . 1 . . . . . . . . 1 . . . . . . . . . . Propulsion 18 | . . . . . 1 4 . . . 1 . . . . . 1 1 . . . . . . 1 . . 6 1 2 Utility 16 | . . . . 1 . . . . . . . . 1 . . 1 . . 2 1 . . . . . . 3 1 6 Weapon 4 | . . . . . . . . . . . . . 1 . . . . . . . . . . . . . 3 . . Highest Loss Streak 12 | . . . . 1 1 3 . . . 1 . . 2 . . 2 1 . 3 4 . . . 1 . . 12 2 8 To Critical Strikes . | . . . . . . . . . . . . . . . . . . . . . . . . . . . . . . Average Slot Usage (%) 61 | . . 28 28 30 2 25 40 54 76 80 89 99 98 99 100 100 82 64 63 52 65 70 67 79 84 86 72 32 28 Engine 1 | . . . . . . . . 5 7 1 5 2 . . . . . . . 5 5 5 2 . . . . . . Reactor 1 | . . . . . . . . . . . . 3 6 6 6 6 6 5 4 . . . 2 5 5 5 4 . . Treads 2 | . . 28 28 23 2 . . . . . . . . . . . . . . . . . . . . . . . . Flight 23 | . . . . . . 17 23 23 23 32 34 40 40 40 40 40 30 23 23 23 29 29 28 32 36 36 28 6 5 Device 1 | . . . . 7 . . . . . . . . . 5 6 6 6 5 5 . . . 2 5 5 5 5 3 1 Processor 7 | . . . . . . . 10 15 15 15 16 20 8 6 6 6 6 5 5 5 5 5 5 5 5 5 5 5 7 Hackware 9 | . . . . . . . . . 7 7 6 6 17 13 13 13 19 17 17 11 16 17 15 15 21 21 21 14 10 Protection 6 | . . . . . . 2 7 8 15 15 13 13 13 13 13 13 4 . . . 1 5 7 10 10 10 5 . . Launcher 1 | . . . . . . . . . . 3 6 6 5 6 6 6 . . . 4 3 5 2 1 . . . . . Slashing Weapon 1 | . . . . . . . . . 7 3 4 . . . . . . . . . . . . . . . . . 1 Naked Turns 110 | . . . . . 60 14 . . . . . . . . . . . . . . . . . . . . . . 36 Heaviest Build 38 | . . . . 1 . 10 2 14 14 14 17 29 29 31 31 31 26 20 20 17 21 21 30 38 36 36 36 17 13 Greatest Support 44 | 20 3 3 3 3 3 25 15 15 15 23 25 33 33 33 33 33 27 21 21 27 27 27 42 44 44 44 44 21 13 Greatest Overweight (x) 1 | . . . . . . . . . . . . . . . . . . . . . . . . . . . . . 1 Average Overweight (x) . | . . . . . . . . . . . . . . . . . . . . . . . . . . . . . . Largest Inventory Capacity 5 | 5 5 5 5 5 5 5 5 5 5 5 5 5 5 5 5 5 5 5 5 5 5 5 5 5 5 5 5 5 5 Average Capacity 5 | 5 5 5 5 5 5 5 5 5 5 5 5 5 5 5 5 5 5 5 5 5 5 5 5 5 5 5 5 5 5 Most Carried 5 | . . . . 1 2 4 4 5 5 5 5 5 5 5 5 5 5 5 5 4 5 5 5 5 5 5 5 2 5 Average Carried 3 | . . . . . 1 2 4 4 5 4 4 4 4 4 5 5 5 5 4 3 3 5 4 3 4 4 3 1 3 Final Capacity 5 | 5 5 5 5 5 5 5 5 5 5 5 5 5 5 5 5 5 5 5 5 5 5 5 5 5 5 5 5 5 5 Final Carried 5 | . . . . 1 2 4 4 5 5 5 5 5 4 5 5 5 5 5 4 3 5 5 5 3 5 5 2 2 5 Class Distribution -------------------- 37% | Hacker-Sprinter 20% | Mutant 18% | Sprinter 15% | Derelict-Sprinter 7% | Hacker-Mutant Dominant Class ---------------- Mutant | -10/Mines Mutant | -10/Exiles Mutant | -9/Mines Mutant | -8/Materials Mutant | -7/Factory Sprinter | -7/Lower Caves Sprinter | -7/Lower Caves Derelict-Sprinter | -7/Zion Sprinter | -6/Proximity Caves Sprinter | -6/Factory Sprinter | -6/Waste Hacker-Sprinter | -6/Factory Hacker-Sprinter | -6/Lower Caves Hacker-Sprinter | -6/Lower Caves Hacker-Mutant | -6/Data Miner Hacker-Sprinter | -5/Proximity Caves Hacker-Sprinter | -5/Factory Hacker-Sprinter | -5/Upper Caves Hacker-Sprinter | -5/Upper Caves Hacker-Sprinter | -5/Zhirov Hacker-Sprinter | -4/Proximity Caves Hacker-Sprinter | -4/Factory Hacker-Sprinter | -4/Extension Hacker-Sprinter | -4/Cetus Hacker-Sprinter | -4/Archives Hacker-Sprinter | -4/Hub_04(d) Hacker-Mutant | -3/Research Hacker-Mutant | -3/Testing Resources | -11 -10 -10 -10 -9 -8 -7 -7 -7 -7 -6 -6 -6 -6 -6 -6 -6 -5 -5 -5 -5 -5 -4 -4 -4 -4 -4 -4 -3 -3 ----------- Run | Jun Mat Min Exi Min Mat Fac Low Low Zio Pro Fac Was Fac Low Low Dat Pro Fac Upp Upp Zhi Pro Fac Ext Cet Arc Hub Res Tes Matter Collected 1250 | 211 . 9 . 10 . 103 19 34 26 84 . 275 . 38 30 . 20 67 11 27 88 . 80 111 . . . . 7 Remotely . | . . . . . . . . . . . . . . . . . . . . . . . . . . . . . . Salvage Created 1604 | . . . . . . 39 . . . 118 . 538 213 . . . 9 77 . . 291 . . 12 . . 307 . . Parts 42 | . . . . . . 2 . . . 9 . 8 9 . . . 1 2 . . 3 . . 2 . . 6 . . Haulers Intercepted 2 | . . . . . . 1 . . . . . . . . . . . 1 . . . . . . . . . . . Recyclers Shooed 2 | . . . . . . . . . . . . . 2 . . . . . . . . . . . . . . . . Parts Field Recycled . | . . . . . . . . . . . . . . . . . . . . . . . . . . . . . . Retrieved Matter . | . . . . . . . . . . . . . . . . . . . . . . . . . . . . . . Parts Self-Destructed 16 | . . . . . . . . . . 12 . . . 1 . . . . . 1 2 . . . . . . . . Prevented 1 | . . . . . . . . . . . . . . 1 . . . . . . . . . . . . . . . Kills | -11 -10 -10 -10 -9 -8 -7 -7 -7 -7 -6 -6 -6 -6 -6 -6 -6 -5 -5 -5 -5 -5 -4 -4 -4 -4 -4 -4 -3 -3 ------- Run | Jun Mat Min Exi Min Mat Fac Low Low Zio Pro Fac Was Fac Low Low Dat Pro Fac Upp Upp Zhi Pro Fac Ext Cet Arc Hub Res Tes Combat Hostiles Destroyed 12 | . . . . . . . . . . 5 . 2 3 . . . . . . . . . . 2 . . . . . Melee 1 | . . . . . . . . . . 1 . . . . . . . . . . . . . . . . . . . AOE 11 | . . . . . . . . . . 4 . 2 3 . . . . . . . . . . 2 . . . . . Classes Destroyed 10 | . . . . . . 1 . . . 2 . 1 3 . . . 1 1 . . . . . . . . 1 . . Worker 3 | . . . . . . . . . . . . . . . . . . . . . . . . . . . 3 . . Hauler 2 | . . . . . . 1 . . . . . . . . . . . 1 . . . . . . . . . . . Recycler 3 | . . . . . . . . . . . . . 1 . . . . . . . . . . . . . 2 . . Operator 1 | . . . . . . . . . . . . . . . . . . 1 . . . . . . . . . . . Swarmer 7 | . . . . . . . . . . 5 . . . . . . . . . . . . . 2 . . . . . Grunt 1 | . . . . . . . . . . . . . 1 . . . . . . . . . . . . . . . . Hunter 2 | . . . . . . . . . . . . . 2 . . . . . . . . . . . . . . . . Compactor 2 | . . . . . . . . . . . . 2 . . . . . . . . . . . . . . . . . Samaritan 1 | . . . . . . . . . . 1 . . . . . . . . . . . . . . . . . . . Tinkerer 1 | . . . . . . . . . . . . . . . . . 1 . . . . . . . . . . . . Wasp 1 | . . . . . . . . . . . . 1 . . . . . . . . . . . . . . . . . Best Kill Streak 5 | . . . . . . 1 . . . 4 . 2 4 . . . . 1 . . . . . 2 . . 5 . . Combat Bots Only 4 | . . . . . . . . . . 4 . 2 3 . . . . . . . . . . 2 . . . . . Max Kills in Single Turn 5 | . . . . . . 1 . . . 2 . 1 2 . . . 1 1 . . . . . 1 . . 5 . . Gunslinging . | . . . . . . . . . . . . . . . . . . . . . . . . . . . . . . Exploded 2 | . . . . . . . . . . 2 . 1 1 . . . . . . . . . . 1 . . . . . Melee 1 | . . . . . . . . . . 1 . . . . . . . . . . . . . . . . . . . Uniques/NPCs Destroyed . | . . . . . . . . . . . . . . . . . . . . . . . . . . . . . . Combat | -11 -10 -10 -10 -9 -8 -7 -7 -7 -7 -6 -6 -6 -6 -6 -6 -6 -5 -5 -5 -5 -5 -4 -4 -4 -4 -4 -4 -3 -3 -------- Run | Jun Mat Min Exi Min Mat Fac Low Low Zio Pro Fac Was Fac Low Low Dat Pro Fac Upp Upp Zhi Pro Fac Ext Cet Arc Hub Res Tes Damage Taken 6039 | . . 213 . 134 500 662 84 138 . 239 53 . 242 5 . 95 216 221 107 149 . 78 127 130 38 78 891 301 1338 Core 3278 | . . 85 . 73 467 459 78 40 . 40 . . 41 5 . . 56 139 . 44 . 39 16 31 . . 343 181 1141 Absorbed by Shields 66 | . . . . . . 15 . . . . . . . . . . . . . . . . . 51 . . . . . Redirected to Shielding 107 | . . . . . . . . 44 . 22 . . 12 . . . 29 . . . . . . . . . . . . Regen/Repaired (Parts) 114 | . . . . . . . . . . . . 77 37 . . . . . . . . . . . . . . . . Core Remaining (%) 55 | 100 . . . 36 15 . . . . 11 . . . . . . 88 . . . . 77 . . . . 61 . . Volleys Fired 68 | . . . . . . 2 . . . 3 2 10 6 . . . 3 6 1 1 6 . . 18 . 2 5 . 3 Largest 1 | . . . . . . 1 . . . 1 1 1 1 . . . 1 1 1 1 1 . . 1 . 1 1 . 1 Hottest 105 | . . . . . . 36 . . . 36 36 36 36 . . . . . . 43 . . . 43 . . 43 . 105 Shots Fired 68 | . . . . . . 2 . . . 3 2 10 6 . . . 3 6 1 1 6 . . 18 . 2 5 . 3 Gun . | . . . . . . . . . . . . . . . . . . . . . . . . . . . . . . Cannon 3 | . . . . . . . . . . . . . . . . . . . . . . . . . . . . . 3 Launcher 28 | . . . . . . 2 . . . 3 2 10 6 . . . . . . 1 . . . 3 . . 1 . . Special 37 | . . . . . . . . . . . . . . . . . 3 6 1 . 6 . . 15 . 2 4 . . Kinetic . | . . . . . . . . . . . . . . . . . . . . . . . . . . . . . . Thermal 3 | . . . . . . . . . . . . . . . . . . . . . . . . . . . . . 3 Explosive 28 | . . . . . . 2 . . . 3 2 10 6 . . . . . . 1 . . . 3 . . 1 . . Electromagnetic . | . . . . . . . . . . . . . . . . . . . . . . . . . . . . . . Robot Hit Streak 8 | . . . . . . . . . . . . 5 . . . . 2 5 6 . 8 . . 6 . 1 . . . Robot Miss Streak 1 | . . . . . . . . . . . . . . . . . 1 . . . 1 . . 1 . 1 . . . Penetration Max . | . . . . . . . . . . . . . . . . . . . . . . . . . . . . . . Secondary Targets . | . . . . . . . . . . . . . . . . . . . . . . . . . . . . . . Shots Hit Robots 26 | . . . . . . . . . . 3 . 5 . . . . 2 3 1 . 5 . . 6 . 1 . . . Core Hits 37 | . . . . . 1 1 . . . 8 . 5 14 . . . . . . . . . . 3 . . 5 . . Critical Kills . | . . . . . . . . . . . . . . . . . . . . . . . . . . . . . . Critical Parts Destroyed . | . . . . . . . . . . . . . . . . . . . . . . . . . . . . . . Critical Strikes . | . . . . . . . . . . . . . . . . . . . . . . . . . . . . . . Melee Attacks 8 | . . . . . . . . . . 6 . . . . . . 1 . . . . . . . . . . . 1 Impact 1 | . . . . . . . . . . . . . . . . . 1 . . . . . . . . . . . . Slashing 7 | . . . . . . . . . . 6 . . . . . . . . . . . . . . . . . . 1 Piercing . | . . . . . . . . . . . . . . . . . . . . . . . . . . . . . . Sneak Attacks 1 | . . . . . . . . . . 1 . . . . . . . . . . . . . . . . . . . Combat Hostiles . | . . . . . . . . . . . . . . . . . . . . . . . . . . . . . . Follow-up Attacks . | . . . . . . . . . . . . . . . . . . . . . . . . . . . . . . Damage Inflicted 3140 | . . . . 38 10 53 . . . 388 . 1339 544 . . . . . . 20 . . . 433 . . 302 . 13 Guns . | . . . . . . . . . . . . . . . . . . . . . . . . . . . . . . Cannons . | . . . . . . . . . . . . . . . . . . . . . . . . . . . . . . Explosions 2922 | . . . . . . 53 . . . 231 . 1339 544 . . . . . . 20 . . . 433 . . 302 . . Melee 157 | . . . . . . . . . . 157 . . . . . . . . . . . . . . . . . . . Ramming 61 | . . . . 38 10 . . . . . . . . . . . . . . . . . . . . . . . 13 Kinetic . | . . . . . . . . . . . . . . . . . . . . . . . . . . . . . . Thermal . | . . . . . . . . . . . . . . . . . . . . . . . . . . . . . . Explosive 2717 | . . . . . . 53 . . . 231 . 1339 544 . . . . . . 20 . . . 433 . . 97 . . Electromagnetic 205 | . . . . . . . . . . . . . . . . . . . . . . . . . . . 205 . . Impact . | . . . . . . . . . . . . . . . . . . . . . . . . . . . . . . Slashing 157 | . . . . . . . . . . 157 . . . . . . . . . . . . . . . . . . . Piercing . | . . . . . . . . . . . . . . . . . . . . . . . . . . . . . . Highest Corruption 15 | . . . . 2 . . . . . . . . . . . . . . . 3 3 3 2 2 2 2 15 . . Average Corruption 2 | . . . . 2 . . . . . . . . . . . . . . . 3 3 3 2 2 2 2 4 . . Corruption Purged . | . . . . . . . . . . . . . . . . . . . . . . . . . . . . . . Corruption Blocked . | . . . . . . . . . . . . . . . . . . . . . . . . . . . . . . Effects 15 | . . . . . . . . . . . . . . . . . . . . 3 1 2 . 6 2 . 1 . . Message Errors 5 | . . . . . . . . . . . . . . . . . . . . 2 1 . . 1 1 . . . . Matter Fused 2 | . . . . . . . . . . . . . . . . . . . . . . . . 2 . . . . . Heat Flow Errors 3 | . . . . . . . . . . . . . . . . . . . . 1 . 1 . 1 . . . . . Energy Discharges 2 | . . . . . . . . . . . . . . . . . . . . . . . . . 1 . 1 . . Data Loss (minor) 2 | . . . . . . . . . . . . . . . . . . . . . . . . 2 . . . . . Alerts 1 | . . . . . . . . . . . . . . . . . . . . . . 1 . . . . . . . Overload Shots . | . . . . . . . . . . . . . . . . . . . . . . . . . . . . . . Overflow Damage 127 | . . . . . . . . . . 86 . . 2 . . . . . . . . . . 27 . . 12 . . Projectiles . | . . . . . . . . . . . . . . . . . . . . . . . . . . . . . . Explosions 41 | . . . . . . . . . . . . . 2 . . . . . . . . . . 27 . . 12 . . Melee 86 | . . . . . . . . . . 86 . . . . . . . . . . . . . . . . . . . Knockbacks 1 | . . . . 1 . . . . . . . . . . . . . . . . . . . . . . . . . Impact 1 | . . . . 1 . . . . . . . . . . . . . . . . . . . . . . . . . Kinetic . | . . . . . . . . . . . . . . . . . . . . . . . . . . . . . . Secondary . | . . . . . . . . . . . . . . . . . . . . . . . . . . . . . . Self-Inflicted Damage 179 | . . . . 18 5 55 . . . . . . . . . . . . . . . . . . . . 96 . 5 Shots 2 | . . . . . . 1 . . . . . . . . . . . . . . . . . . . . 1 . . Rammed 14 | . . . . 6 1 . . . . . . . 1 . . 1 . . . . . . . . . . . . 5 Targets Rammed 14 | . . . . 6 1 . . . . . . . 1 . . 1 . . . . . . . . . . . . 5 Kicked . | . . . . . . . . . . . . . . . . . . . . . . . . . . . . . . Crushed . | . . . . . . . . . . . . . . . . . . . . . . . . . . . . . . Highest Temperature 308 | . . . . . . 26 . 5 . 7 6 92 124 308 . . . . . 170 . 147 . 155 . 3 . . . Average Temperature 82 | . . . . . . 13 . 5 . 4 2 30 62 133 . . . . . 94 . 105 . 98 . 3 . . . Received Heat Transfer 1039 | . . 105 . 30 189 219 15 45 . 39 6 . 30 . . . 12 30 21 36 . . 48 21 9 18 18 37 111 Siege Activations . | . . . . . . . . . . . . . . . . . . . . . . . . . . . . . . Robots Corrupted . | . . . . . . . . . . . . . . . . . . . . . . . . . . . . . . Combat Hostiles . | . . . . . . . . . . . . . . . . . . . . . . . . . . . . . . Parts Fried 4 | . . . . . . . . . . . . . . . . . . . . . . . . . . . 4 . . Impact Corruptions . | . . . . . . . . . . . . . . . . . . . . . . . . . . . . . . Robots Melted . | . . . . . . . . . . . . . . . . . . . . . . . . . . . . . . Combat Hostiles . | . . . . . . . . . . . . . . . . . . . . . . . . . . . . . . Parts Melted . | . . . . . . . . . . . . . . . . . . . . . . . . . . . . . . Heat Transferred . | . . . . . . . . . . . . . . . . . . . . . . . . . . . . . . Parts Sabotaged . | . . . . . . . . . . . . . . . . . . . . . . . . . . . . . . Parts Stolen . | . . . . . . . . . . . . . . . . . . . . . . . . . . . . . . Parts Stripped . | . . . . . . . . . . . . . . . . . . . . . . . . . . . . . . Power Chain Reactions . | . . . . . . . . . . . . . . . . . . . . . . . . . . . . . . Missiles Intercepted . | . . . . . . . . . . . . . . . . . . . . . . . . . . . . . . Alert | -11 -10 -10 -10 -9 -8 -7 -7 -7 -7 -6 -6 -6 -6 -6 -6 -6 -5 -5 -5 -5 -5 -4 -4 -4 -4 -4 -4 -3 -3 ------- Run | Jun Mat Min Exi Min Mat Fac Low Low Zio Pro Fac Was Fac Low Low Dat Pro Fac Upp Upp Zhi Pro Fac Ext Cet Arc Hub Res Tes Peak Influence 770 | . . 105 . 115 90 543 . . . . 264 186 468 . . . . 117 . . . . 298 770 351 200 354 306 211 Initial 311 | . . . . . 40 40 . . . . 144 92 130 . . . . . . . . . 18 145 311 140 70 162 166 Average 198 | . . 54 . 36 49 201 . . . . 196 172 254 . . . . 37 . . . . 128 468 315 155 243 254 169 Maximum Alert Level 3 | . . . . . . 2 . . . . 1 . 2 . . . . . . . . . 1 3 1 1 1 1 1 Low Security (%) 67 | 100 100 100 . 100 100 64 . . . . 61 100 51 . . . . 100 . . . . 69 16 . 81 33 23 98 Level 1 16 | . . . . . . 14 . . . . 38 . 14 . . . . . . . . . 30 4 100 18 66 76 1 Level 2 14 | . . . . . . 20 . . . . . . 33 . . . . . . . . . . 71 . . . . . Level 3 1 | . . . . . . . . . . . . . . . . . . . . . . . . 8 . . . . . Level 4 . | . . . . . . . . . . . . . . . . . . . . . . . . . . . . . . Level 5 . | . . . . . . . . . . . . . . . . . . . . . . . . . . . . . . High Security . | . . . . . . . . . . . . . . . . . . . . . . . . . . . . . . Max Security . | . . . . . . . . . . . . . . . . . . . . . . . . . . . . . . Squads Dispatched 16 | . . . . . 2 5 . . . . . . 2 . . . . . . . . . . . . . 1 2 4 Investigation 3 | . . . . . 1 2 . . . . . . . . . . . . . . . . . . . . . . . Extermination . | . . . . . . . . . . . . . . . . . . . . . . . . . . . . . . Reinforcement 8 | . . . . . 1 3 . . . . . . . . . . . . . . . . . . . . 1 2 1 Assault . | . . . . . . . . . . . . . . . . . . . . . . . . . . . . . . Garrison 2 | . . . . . . . . . . . . . 2 . . . . . . . . . . . . . . . . Intercept 3 | . . . . . . . . . . . . . . . . . . . . . . . . . . . . . 3 Searches Triggered . | . . . . . . . . . . . . . . . . . . . . . . . . . . . . . . Construction Impeded 1 | . . . . . . 1 . . . . . . . . . . . . . . . . . . . . . . . Haulers Reinforced . | . . . . . . . . . . . . . . . . . . . . . . . . . . . . . . Active Scanning Responses . | . . . . . . . . . . . . . . . . . . . . . . . . . . . . . . Cargo Convoy Interrupts . | . . . . . . . . . . . . . . . . . . . . . . . . . . . . . . Stealth | -11 -10 -10 -10 -9 -8 -7 -7 -7 -7 -6 -6 -6 -6 -6 -6 -6 -5 -5 -5 -5 -5 -4 -4 -4 -4 -4 -4 -3 -3 --------- Run | Jun Mat Min Exi Min Mat Fac Low Low Zio Pro Fac Was Fac Low Low Dat Pro Fac Upp Upp Zhi Pro Fac Ext Cet Arc Hub Res Tes Distress Signals 14 | . . . . . 1 . . . . . . . . . . . 1 . . . . . 3 1 2 . 1 3 2 Communications Jammed . | . . . . . . . . . . . . . . . . . . . . . . . . . . . . . . Distress Signals . | . . . . . . . . . . . . . . . . . . . . . . . . . . . . . . Times Spotted 240 | . . 12 . 6 13 30 6 9 . 12 6 6 6 2 1 4 4 9 7 5 . 3 14 15 9 5 22 20 14 Peak Tracking Total 18 | . . 5 . 3 13 18 4 9 . 5 8 5 4 1 1 4 7 5 6 6 . 3 14 5 8 4 14 14 16 Tactical Retreats 37 | . . 3 . 1 1 7 2 3 . 3 1 . . 1 . . . 1 1 2 . 1 3 1 2 . 1 3 . Traps | -11 -10 -10 -10 -9 -8 -7 -7 -7 -7 -6 -6 -6 -6 -6 -6 -6 -5 -5 -5 -5 -5 -4 -4 -4 -4 -4 -4 -3 -3 ------- Run | Jun Mat Min Exi Min Mat Fac Low Low Zio Pro Fac Was Fac Low Low Dat Pro Fac Upp Upp Zhi Pro Fac Ext Cet Arc Hub Res Tes Traps Triggered 8 | . . . . . 1 3 . . . . 1 . . . . . . . . . . . 1 1 . . . . 1 Indirectly . | . . . . . . . . . . . . . . . . . . . . . . . . . . . . . . Trap Hack Attempts . | . . . . . . . . . . . . . . . . . . . . . . . . . . . . . . Triggered . | . . . . . . . . . . . . . . . . . . . . . . . . . . . . . . Disarmed . | . . . . . . . . . . . . . . . . . . . . . . . . . . . . . . Reprogrammed . | . . . . . . . . . . . . . . . . . . . . . . . . . . . . . . Reused . | . . . . . . . . . . . . . . . . . . . . . . . . . . . . . . Traps Extracted . | . . . . . . . . . . . . . . . . . . . . . . . . . . . . . . Installed . | . . . . . . . . . . . . . . . . . . . . . . . . . . . . . . Triggered 2 | . . . . . . . . . . . . . . 1 . . . . 1 . . . . . . . . . . Machines | -11 -10 -10 -10 -9 -8 -7 -7 -7 -7 -6 -6 -6 -6 -6 -6 -6 -5 -5 -5 -5 -5 -4 -4 -4 -4 -4 -4 -3 -3 ---------- Run | Jun Mat Min Exi Min Mat Fac Low Low Zio Pro Fac Was Fac Low Low Dat Pro Fac Upp Upp Zhi Pro Fac Ext Cet Arc Hub Res Tes Machines Disabled 10 | . . . . . . . . . . . . . 2 . . . 1 . . . . . . 1 . . 3 . 3 Max in Single Turn 2 | . . . . . . . . . . . . . 1 . . . 1 . . . . . . . . . 2 . 1 Network Hub 4 | . . . . . . . . . . . . . . . . . . . . . . . . . . . 4 . . Machines Repaired . | . . . . . . . . . . . . . . . . . . . . . . . . . . . . . . Machines Sabotaged . | . . . . . . . . . . . . . . . . . . . . . . . . . . . . . . Overloaded Fab Kills . | . . . . . . . . . . . . . . . . . . . . . . . . . . . . . . Hacking | -11 -10 -10 -10 -9 -8 -7 -7 -7 -7 -6 -6 -6 -6 -6 -6 -6 -5 -5 -5 -5 -5 -4 -4 -4 -4 -4 -4 -3 -3 --------- Run | Jun Mat Min Exi Min Mat Fac Low Low Zio Pro Fac Was Fac Low Low Dat Pro Fac Upp Upp Zhi Pro Fac Ext Cet Arc Hub Res Tes Machines Accessed 25 | . . . . . . 5 2 1 . . 1 . . . 1 3 1 . . . 2 . 1 7 1 . . . . Terminals 13 | . . . . . . 3 . . . . . . . . . . 1 . . . . . 1 7 1 . . . . Fabricators . | . . . . . . . . . . . . . . . . . . . . . . . . . . . . . . Repair Stations 2 | . . . . . . 1 . . . . 1 . . . . . . . . . . . . . . . . . . Recycling Units . | . . . . . . . . . . . . . . . . . . . . . . . . . . . . . . Scanalyzers . | . . . . . . . . . . . . . . . . . . . . . . . . . . . . . . Garrison Access 1 | . . . . . . 1 . . . . . . . . . . . . . . . . . . . . . . . Total Hacks 57 | . . . . . . 10 5 1 . . 1 . . . 1 18 1 . . . 5 . 1 13 1 . . . . Successful 43 | . . . . . . 2 5 1 . . 1 . . . 1 18 1 . . . 5 . 1 7 1 . . . . Failed 14 | . . . . . . 8 . . . . . . . . . . . . . . . . . 6 . . . . . Catastrophic 3 | . . . . . . 3 . . . . . . . . . . . . . . . . . . . . . . . Database Lockouts . | . . . . . . . . . . . . . . . . . . . . . . . . . . . . . . Manual 51 | . . . . . . 3 . . 1 . 7 . . . . . 1 9 . . . . 8 11 1 . 2 5 3 Terminals 22 | . . . . . . 6 . . . . . . . . . . 1 . . . . . 1 13 1 . . . . Fabricators . | . . . . . . . . . . . . . . . . . . . . . . . . . . . . . . Repair Stations 3 | . . . . . . 2 . . . . 1 . . . . . . . . . . . . . . . . . . Recycling Units . | . . . . . . . . . . . . . . . . . . . . . . . . . . . . . . Scanalyzers . | . . . . . . . . . . . . . . . . . . . . . . . . . . . . . . Garrison Access 2 | . . . . . . 2 . . . . . . . . . . . . . . . . . . . . . . . Terminal Hacks 41 | . . . . . . 1 5 1 . . . . . . 1 18 1 . . . 5 . 1 7 1 . . . . Record 11 | . . . . . . . 4 . . . . . . . . 2 . . . . 5 . . . . . . . . Part Schematic 11 | . . . . . . . . . . . . . . . . 11 . . . . . . . . . . . . . Robot Schematic 2 | . . . . . . . . . . . . . . . . 2 . . . . . . . . . . . . . Prototype ID Bank 3 | . . . . . . . . . . . . . . . . 3 . . . . . . . . . . . . . Open Door 13 | . . . . . . . 1 1 . . . . . . 1 . 1 . . . . . 1 7 1 . . . . Branch Access Points 1 | . . . . . . 1 . . . . . . . . . . . . . . . . . . . . . . . Fabricator Hacks . | . . . . . . . . . . . . . . . . . . . . . . . . . . . . . . Repair Station Hacks 1 | . . . . . . . . . . . 1 . . . . . . . . . . . . . . . . . . Refit 1 | . . . . . . . . . . . 1 . . . . . . . . . . . . . . . . . . Recycling Unit Hacks . | . . . . . . . . . . . . . . . . . . . . . . . . . . . . . . Scanalyzer . | . . . . . . . . . . . . . . . . . . . . . . . . . . . . . . Garrison Access Hacks . | . . . . . . . . . . . . . . . . . . . . . . . . . . . . . . Unauthorized Hacks 1 | . . . . . . 1 . . . . . . . . . . . . . . . . . . . . . . . Terminals 1 | . . . . . . 1 . . . . . . . . . . . . . . . . . . . . . . . Botnet 1 | . . . . . . 1 . . . . . . . . . . . . . . . . . . . . . . . Fabricators . | . . . . . . . . . . . . . . . . . . . . . . . . . . . . . . Repair Stations . | . . . . . . . . . . . . . . . . . . . . . . . . . . . . . . Recycling Units . | . . . . . . . . . . . . . . . . . . . . . . . . . . . . . . Scanalyzers . | . . . . . . . . . . . . . . . . . . . . . . . . . . . . . . Garrison Access . | . . . . . . . . . . . . . . . . . . . . . . . . . . . . . . Data Cores Recovered . | . . . . . . . . . . . . . . . . . . . . . . . . . . . . . . Used . | . . . . . . . . . . . . . . . . . . . . . . . . . . . . . . Hacking Detections 8 | . . . . . . 5 . . . . . . . . . . . . . . . . . 3 . . . . . Full Trace Events 2 | . . . . . . 2 . . . . . . . . . . . . . . . . . . . . . . . Feedback Events . | . . . . . . . . . . . . . . . . . . . . . . . . . . . . . . Feedback Blocked . | . . . . . . . . . . . . . . . . . . . . . . . . . . . . . . Robot Schematics Acquired 5 | . . . . . . . . . 3 . . . . . . 2 . . . . . . . . . . . . . Robots Built . | . . . . . . . . . . . . . . . . . . . . . . . . . . . . . . Authchips . | . . . . . . . . . . . . . . . . . . . . . . . . . . . . . . Time . | . . . . . . . . . . . . . . . . . . . . . . . . . . . . . . Total Robot Build Rating . | . . . . . . . . . . . . . . . . . . . . . . . . . . . . . . Part Schematics Acquired 26 | . . . . . . . . . 15 . . . . . . 11 . . . . . . . . . . . . . Parts Built . | . . . . . . . . . . . . . . . . . . . . . . . . . . . . . . Authchips . | . . . . . . . . . . . . . . . . . . . . . . . . . . . . . . Time . | . . . . . . . . . . . . . . . . . . . . . . . . . . . . . . Total Part Build Rating . | . . . . . . . . . . . . . . . . . . . . . . . . . . . . . . Parts Repaired . | . . . . . . . . . . . . . . . . . . . . . . . . . . . . . . Time . | . . . . . . . . . . . . . . . . . . . . . . . . . . . . . . Parts Recycled . | . . . . . . . . . . . . . . . . . . . . . . . . . . . . . . Recycled Matter . | . . . . . . . . . . . . . . . . . . . . . . . . . . . . . . Retrieved Matter . | . . . . . . . . . . . . . . . . . . . . . . . . . . . . . . Retrieved Components . | . . . . . . . . . . . . . . . . . . . . . . . . . . . . . . Parts Scanalyzed . | . . . . . . . . . . . . . . . . . . . . . . . . . . . . . . Part Schematics Acquired . | . . . . . . . . . . . . . . . . . . . . . . . . . . . . . . Parts Damaged . | . . . . . . . . . . . . . . . . . . . . . . . . . . . . . . Bothacking | -11 -10 -10 -10 -9 -8 -7 -7 -7 -7 -6 -6 -6 -6 -6 -6 -6 -5 -5 -5 -5 -5 -4 -4 -4 -4 -4 -4 -3 -3 ------------ Run | Jun Mat Min Exi Min Mat Fac Low Low Zio Pro Fac Was Fac Low Low Dat Pro Fac Upp Upp Zhi Pro Fac Ext Cet Arc Hub Res Tes Used RIF Installer . | . . . . . . . . . . . . . . . . . . . . . . . . . . . . . . Robots Hacked . | . . . . . . . . . . . . . . . . . . . . . . . . . . . . . . Non-combat . | . . . . . . . . . . . . . . . . . . . . . . . . . . . . . . Combat . | . . . . . . . . . . . . . . . . . . . . . . . . . . . . . . Robot Hacks Applied . | . . . . . . . . . . . . . . . . . . . . . . . . . . . . . . Relay Couplers Released . | . . . . . . . . . . . . . . . . . . . . . . . . . . . . . . Fabnet Peak Effective % . | . . . . . . . . . . . . . . . . . . . . . . . . . . . . . . Robots Rewired 4 | . . . . . . . . . . . . . . . . . . . . . . . . 4 . . . . . Allies Hacked . | . . . . . . . . . . . . . . . . . . . . . . . . . . . . . . Hacks Repelled . | . . . . . . . . . . . . . . . . . . . . . . . . . . . . . . Allies | -11 -10 -10 -10 -9 -8 -7 -7 -7 -7 -6 -6 -6 -6 -6 -6 -6 -5 -5 -5 -5 -5 -4 -4 -4 -4 -4 -4 -3 -3 -------- Run | Jun Mat Min Exi Min Mat Fac Low Low Zio Pro Fac Was Fac Low Low Dat Pro Fac Upp Upp Zhi Pro Fac Ext Cet Arc Hub Res Tes Total Allies 60 | . . . . 1 . . . . 6 . . 19 3 . . . . 2 . . . . 5 18 1 . 2 3 . Largest Group 21 | . . . . 1 . . . . 6 6 . 19 20 . . . . 2 . . . . 5 21 2 1 2 3 . Highest-Rated Group 1306 | . . . . 31 . . . . 343 343 . 684 725 . . . . 170 . . . . 494 1306 248 144 206 288 . Highest-Rated Ally 159 | . . . . 31 . . . . 96 96 . 50 50 . . . . 85 . . . . 103 159 159 144 103 96 . Zionite Dispatches 7 | . . . . . . . . . . . . . . . . . . 1 . . . . 2 2 . . 1 1 . Heavy 3 | . . . . . . . . . . . . . . . . . . 1 . . . . 1 . . . 1 . . Light 2 | . . . . . . . . . . . . . . . . . . . . . . . 1 . . . . 1 . Fire 1 | . . . . . . . . . . . . . . . . . . . . . . . . 1 . . . . . Hacker 1 | . . . . . . . . . . . . . . . . . . . . . . . . 1 . . . . . Total Orders . | . . . . . . . . . . . . . . . . . . . . . . . . . . . . . . Ally Attacks 227 | . . . . 12 . . . . . 30 . 73 22 . . . . . . . . . 9 62 12 1 1 5 . Total Damage 7774 | . . . . 146 . . . . . 1253 . 3028 451 . . . . . . . . . 415 1808 366 51 38 218 . Kills 33 | . . . . 3 . . . . . 5 . 5 4 . . . . . . . . . 3 11 . . 1 1 . Allies Corrupted 1 | . . . . . . . . . . . . . . . . . . . . . . . . . . . 1 . . Allies Melted 2 | . . . . . . . . . . . . . . . . . . . . . . . . 2 . . . . . Intel | -11 -10 -10 -10 -9 -8 -7 -7 -7 -7 -6 -6 -6 -6 -6 -6 -6 -5 -5 -5 -5 -5 -4 -4 -4 -4 -4 -4 -3 -3 ------- Run | Jun Mat Min Exi Min Mat Fac Low Low Zio Pro Fac Was Fac Low Low Dat Pro Fac Upp Upp Zhi Pro Fac Ext Cet Arc Hub Res Tes Robot Analysis Total 131 | . . . . . . . . . . . . . . . . 131 . . . . . . . . . . . . . Derelict Logs Recovered 12 | . . 1 . 1 . . . 1 2 2 . . . . 1 . 1 . 1 1 . 1 . . . . . . . Drone Launches . | . . . . . . . . . . . . . . . . . . . . . . . . . . . . . . Drone Recoveries . | . . . . . . . . . . . . . . . . . . . . . . . . . . . . . . Zionite Intel Received 7 | . . . . . . . . . . . 1 . . . . . . 2 . . . . 1 2 . . . 1 . Branch Access 3 | . . . . . . . . . . . 1 . . . . . . 1 . . . . . . . . . 1 . Component Stockpiles 1 | . . . . . . . . . . . . . . . . . . . . . . . 1 . . . . . . Unaware Analyses 1 | . . . . . . . . . . . . . . . . . . 1 . . . . . . . . . . . Trap Installations 1 | . . . . . . . . . . . . . . . . . . . . . . . . 1 . . . . . Depthwide Sectors/-1 1 | . . . . . . . . . . . . . . . . . . . . . . . . 1 . . . . . Exploration | -11 -10 -10 -10 -9 -8 -7 -7 -7 -7 -6 -6 -6 -6 -6 -6 -6 -5 -5 -5 -5 -5 -4 -4 -4 -4 -4 -4 -3 -3 ------------- Run | Jun Mat Min Exi Min Mat Fac Low Low Zio Pro Fac Was Fac Low Low Dat Pro Fac Upp Upp Zhi Pro Fac Ext Cet Arc Hub Res Tes Turns Passed 4050 | 23 5 231 24 124 80 322 123 79 543 243 108 187 62 69 79 25 125 161 172 117 133 70 94 337 87 16 77 108 226 Spaces Moved 8925 | 31 10 462 48 231 156 770 414 246 1052 434 308 220 152 232 353 88 413 403 339 337 159 281 274 424 179 45 239 296 329 Core 1110 | 27 10 462 48 231 156 27 . . . . . . . . . . . . . . . . . . . . . . 149 Treads 4 | 4 . . . . . . . . . . . . . . . . . . . . . . . . . . . . . Legs . | . . . . . . . . . . . . . . . . . . . . . . . . . . . . . . Wheels . | . . . . . . . . . . . . . . . . . . . . . . . . . . . . . . Hover . | . . . . . . . . . . . . . . . . . . . . . . . . . . . . . . Flight 7811 | . . . . . . 743 414 246 1052 434 308 220 152 232 353 88 413 403 339 337 159 281 274 424 179 45 239 296 180 Fastest Speed 18 | 50 50 50 50 50 50 25 29 29 29 23 23 21 22 22 22 22 25 27 27 25 25 25 22 18 18 18 18 32 34 Average Speed 29 | 64 50 50 50 50 50 35 29 29 29 24 25 23 22 22 22 22 25 27 27 26 25 25 24 20 18 18 22 34 42 Slowest Speed 160 | 160 50 50 50 50 50 50 29 29 29 29 26 24 22 22 22 25 27 27 27 27 25 25 25 25 18 18 35 35 100 Overloaded Moves . | . . . . . . . . . . . . . . . . . . . . . . . . . . . . . . Propulsion Burnouts . | . . . . . . . . . . . . . . . . . . . . . . . . . . . . . . Robots Hopped 70 | . . . . . . 15 4 3 . 1 4 . . . . 2 2 5 2 . . 2 7 9 3 2 6 2 1 Cave-ins Triggered 1 | . . . . . . . . . . . . . . . . . . . . . . . . . . . 1 . . Teleports 1 | . . . . . . . . . . . . . . . . . . . . . . . . . . . 1 . . Exploration Rate (%) 45 | 2 3 93 10 43 27 32 56 43 89 65 13 86 9 51 59 78 47 14 60 55 61 60 10 57 70 67 53 15 50 Regions Visited 29 Branch Regions 20 Pre-discovered Areas 35 | . . 1 . . . . . . 3 . . . . . . 25 . . . . 3 . . 3 . . . . . Known Exits Taken 6 | . . . . . . 1 . . . . . . 1 . . . 1 1 . . . 1 . . . . . 1 . Unknown Exits Taken 21 | 1 1 1 1 1 1 . 1 1 1 1 . . . 1 1 1 . . 1 1 1 . 1 1 1 1 1 . . Scrap Searched 17 | . . 1 . 1 . . 2 2 2 1 . . . 2 2 . 1 . . 3 . . . . . . . . . Spaces Dug 83 | . . . . . . 15 . . . 3 27 9 . . . . . . . 19 . . . 10 . . . . . Terrain Destroyed 339 | . . . . . . 15 . . . 16 27 61 16 . . . . . . 19 . . . 38 . . 147 . . Melee . | . . . . . . . . . . . . . . . . . . . . . . . . . . . . . . Projectile . | . . . . . . . . . . . . . . . . . . . . . . . . . . . . . . AOE 339 | . . . . . . 15 . . . 16 27 61 16 . . . . . . 19 . . . 38 . . 147 . . Terrain Rammed . | . . . . . . . . . . . . . . . . . . . . . . . . . . . . . . Walls Destroyed . | . . . . . . . . . . . . . . . . . . . . . . . . . . . . . . Machines Disabled . | . . . . . . . . . . . . . . . . . . . . . . . . . . . . . . Actions | -11 -10 -10 -10 -9 -8 -7 -7 -7 -7 -6 -6 -6 -6 -6 -6 -6 -5 -5 -5 -5 -5 -4 -4 -4 -4 -4 -4 -3 -3 --------- Run | Jun Mat Min Exi Min Mat Fac Low Low Zio Pro Fac Was Fac Low Low Dat Pro Fac Upp Upp Zhi Pro Fac Ext Cet Arc Hub Res Tes Total 10092 | 32 9 461 47 238 157 799 411 248 1289 556 330 345 173 248 353 86 423 438 415 360 239 278 294 630 230 46 248 299 410 Wait 955 | . . . . . . . . . 238 108 18 105 9 15 . . 1 33 74 21 63 . 16 136 54 . 2 1 61 Move 8762 | 30 9 461 47 230 155 739 405 240 1051 431 301 219 152 231 352 83 408 392 334 336 158 276 259 407 172 40 226 291 327 Hop 65 | . . . . . . 15 4 2 . 1 3 . . . . 2 2 5 2 . . 2 7 7 3 2 5 2 1 Pick Up 19 | . . . . 1 1 4 . 2 . . . 2 1 1 . . . 1 . . 5 . . . . . . . 1 Fast Attach 50 | 2 . . . 1 . 11 2 3 . 4 2 1 1 1 . . 2 . . 1 2 . 4 3 . . 1 3 6 Attach 27 | . . . . . . 4 . 1 . 1 1 1 2 . . . . . 2 1 3 . . 4 . 1 5 1 . Detach 18 | . . . . . . 2 . . . 1 . . . . . . 1 . 1 . . . 1 3 1 1 3 1 3 Swap 9 | . . . . . . . . . . . 2 2 . . 1 . 1 . . . . . 3 . . . . . . Drop 23 | . . . . . . . . . . 1 1 5 2 . . . 4 1 1 . 2 . 4 . . . . . 2 Fire 68 | . . . . . . 2 . . . 3 2 10 6 . . . 3 6 1 1 6 . . 18 . 2 5 . 3 Melee 8 | . . . . . . . . . . 6 . . . . . . 1 . . . . . . . . . . . 1 Ram 13 | . . . . 6 1 . . . . . . . . . . 1 . . . . . . . . . . . . 5 Kick . | . . . . . . . . . . . . . . . . . . . . . . . . . . . . . . Crush . | . . . . . . . . . . . . . . . . . . . . . . . . . . . . . . Escape Stasis 30 | . . . . . . 22 . . . . . . . . . . . . . . . . . 7 . . 1 . . Rewire 45 | . . . . . . . . . . . . . . . . . . . . . . . . 45 . . . . . Trap . | . . . . . . . . . . . . . . . . . . . . . . . . . . . . . . Miscellaneous . | . . . . . . . . . . . . . . . . . . . . . . . . . . . . . . Route ------- -11/Junkyard -10/Materials -10/Mines (discovered 3 exits: [*Mat x2] / [*Exi]) -10/Exiles -9/Mines -8/Materials -7/Factory (discovered 4 exits: *Fac x2 / *Low x2) -7/Lower Caves -7/Lower Caves -7/Zion -6/Proximity Caves -6/Factory (discovered 3 exits: Fac / Low x2) -6/Waste -6/Factory -6/Lower Caves -6/Lower Caves (discovered 2 exits: *Fac / *Dat) -6/Data Miner -5/Proximity Caves -5/Factory (discovered 4 exits: *Fac x2 / *Upp x2) -5/Upper Caves -5/Upper Caves -5/Zhirov -4/Proximity Caves -4/Factory (discovered 2 exits: *Ext / Arm) -4/Extension (discovered 2 exits: *Res / *Cet) -4/Cetus -4/Archives (discovered 2 exits: *Res / *Hub) -4/Hub_04(d) (discovered 2 exits: *Res x2) -3/Research (discovered 2 exits: *Tes x2) -3/Testing History --------- Turn | Location | Event 15 | -11/Junkyard | Discovered new exit (range 16) 24 | -11/Junkyard | Entered Materials 24 | -10/Materials | Discovered new exit (range 8) 29 | -10/Materials | Entered Mines 66 | -10/Mines | Discovered new exit (range 15) 70 | -10/Mines | YI-UF0 nonchalantly dropped a Grenade Launcher on the ground 215 | -10/Mines | Discovered new exit (range 11) 258 | -10/Mines | Deemed a non-threat by the Exiles lab entrance 258 | -10/Mines | Discovered new exit (range 5) 260 | -10/Mines | Entered Exiles 267 | -10/Exiles | Discovered new exit (range 15) 274 | -10/Exiles | Met 8R-AWN 284 | -10/Exiles | Entered Mines 317 | -9/Mines | Build established: Mutant 337 | -9/Mines | Found a damaged Exp. Sensor Array with a note attached 338 | -9/Mines | Found Prototype Device 338 | -9/Mines | Identified Exp. Sensor Array 351 | -9/Mines | Received a Mining Laser from a helpful Derelict 362 | -9/Mines | Core integrity fell below 50% 407 | -9/Mines | Discovered new exit (range 4) 408 | -9/Mines | Entered Materials 408 | -8/Materials | Evolved 4 slots: Propulsion x3, Utility x1 472 | -8/Materials | Core integrity fell below 50% 481 | -8/Materials | Discovered new exit (range 13) 488 | -8/Materials | Core integrity fell below 20% 488 | -8/Materials | Entered Factory 488 | -7/Factory | Evolved 2 slots: Utility x2 666 | -7/Factory | Identified exit to Lower Caves 678 | -7/Factory | Discovered new exit (range 12) 739 | -7/Factory | Discovered new exit (range 9) 745 | -7/Factory | Core integrity fell below 50% 778 | -7/Factory | Lost 3 parts (3n) 810 | -7/Factory | Entered Lower Caves 831 | -7/Lower Caves | Learned Research security intel 864 | -7/Lower Caves | Encountered a Warlord checkpoint 909 | -7/Lower Caves | Attracted the attention of an 0b10 checkpoint 931 | -7/Lower Caves | Discovered new exit (range 8) 933 | -7/Lower Caves | Entered another Lower Caves area 940 | -7/Lower Caves | Learned 4 Factory zone layouts 959 | -7/Lower Caves | Core integrity fell below 20% 999 | -7/Lower Caves | Discovered new exit (range 12) 1012 | -7/Lower Caves | Entered Zion 1023 | -7/Zion | Discovered new exit (range 16) 1034 | -7/Zion | Given A8's code to call for help 1081 | -7/Zion | Learned location of Warlord (-4) 1100 | -7/Zion | Learned Factory stockpile data 1101 | -7/Zion | Learned location of Extension (-4) 1155 | -7/Zion | Learned location of Armory (-4) 1253 | -7/Zion | Enhanced Grunt warped into view, answering call for help 1259 | -7/Zion | Enhanced Grunt warped into view, answering call for help 1270 | -7/Zion | Imprinted 1272 | -7/Zion | Declared Zion's savior 1294 | -7/Zion | Build established: Derelict-Sprinter 1555 | -7/Zion | Entered Proximity Caves 1555 | -6/Proximity Caves | Accompanied by 6 allies 1633 | -6/Proximity Caves | Spotted B-75 Beast 1641 | -6/Proximity Caves | Learned 4 Factory zone layouts 1747 | -6/Proximity Caves | Attracted the attention of an 0b10 checkpoint 1766 | -6/Proximity Caves | Learned location of 1 exit from Factory 1797 | -6/Proximity Caves | Discovered new exit (range 7) 1798 | -6/Proximity Caves | Entered Factory 1798 | -6/Factory | Evolved 2 slots: Propulsion x1, Utility x1 1799 | -6/Factory | Identified exit to Factory 1849 | -6/Factory | Spotted B-75 Beast 1905 | -6/Factory | Retrieved Zion intel report: Branch Access 1905 | -6/Factory | Identified exit to Lower Caves 1906 | -6/Factory | Sucked down chute 1906 | -6/Factory | Entered Waste 1908 | -6/Waste | Spotted C-40 Crusher 1920 | -6/Waste | Spotted C-40 Crusher 1920 | -6/Waste | Spotted C-40 Crusher 1920 | -6/Waste | Spotted C-40 Crusher 1921 | -6/Waste | Spotted C-40 Crusher 1931 | -6/Waste | Warlord forces began an assault 1933 | -6/Waste | Allies destroyed C-40 Crusher 1939 | -6/Waste | Destroyed C-40 Crusher 1943 | -6/Waste | Allies destroyed C-40 Crusher 1946 | -6/Waste | Destroyed C-40 Crusher 1947 | -6/Waste | Build established: Sprinter 1954 | -6/Waste | Allies destroyed C-40 Crusher 1959 | -6/Waste | Spotted C-40 Crusher 1968 | -6/Waste | Allies destroyed C-40 Crusher 2039 | -6/Waste | Discovered new exit (range 13) 2093 | -6/Waste | Entered Factory 2093 | -6/Factory | Accompanied by 17 allies 2151 | -6/Factory | Discovered exit to Lower Caves (range 16) 2155 | -6/Factory | Entered Lower Caves 2191 | -6/Lower Caves | Encountered a Warlord checkpoint 2201 | -6/Lower Caves | Attracted the attention of an 0b10 checkpoint 2221 | -6/Lower Caves | Discovered new exit (range 14) 2224 | -6/Lower Caves | Entered another Lower Caves area 2247 | -6/Lower Caves | Discovered exit to Factory (range 12) 2274 | -6/Lower Caves | Learned 12 Factory zone layouts 2297 | -6/Lower Caves | Encountered a Warlord checkpoint 2300 | -6/Lower Caves | Discovered new exit (range 15) 2303 | -6/Lower Caves | Entered Data Miner 2303 | -6/Data Miner | Discovered new exit (range 7) 2308 | -6/Data Miner | Met Data Miner 2312 | -6/Data Miner | Learned location of Section 7 (-2) 2312 | -6/Data Miner | Acquired the access code to Warlord's prototype stash 2315 | -6/Data Miner | Received God Mode back door access code from Data Miner 2317 | -6/Data Miner | Interfaced with the Data Conduit 2328 | -6/Data Miner | Entered Proximity Caves 2364 | -5/Proximity Caves | Spotted B-75 Beast 2384 | -5/Proximity Caves | Acquired the password to a Derelict Tinkerer's latest research 2388 | -5/Proximity Caves | Found Prototype Special Weapon 2388 | -5/Proximity Caves | Identified Molecular Deconstructor 2444 | -5/Proximity Caves | Snuck into a huge 0b10 base via the rear entrance 2453 | -5/Proximity Caves | Entered Factory 2453 | -5/Factory | Evolved 2 slots: Propulsion x1, Utility x1 2454 | -5/Factory | Identified exit to Factory 2455 | -5/Factory | Loaded intel: 308 machine locations 2481 | -5/Factory | Discovered exit to Factory (range 15) 2485 | -5/Factory | Retrieved Zion intel report: Branch Access 2485 | -5/Factory | Identified exit to Upper Caves 2573 | -5/Factory | Retrieved Zion intel report: Unaware Analyses 2574 | -5/Factory | Zion Heavy squad teleported in 2614 | -5/Factory | Entered Upper Caves 2627 | -5/Upper Caves | Build established: Hacker-Sprinter 2641 | -5/Upper Caves | Spotted B-75 Beast 2782 | -5/Upper Caves | Learned Factory non-interactive machine intel 2784 | -5/Upper Caves | Discovered new exit (range 8) 2786 | -5/Upper Caves | Entered another Upper Caves area 2797 | -5/Upper Caves | Attracted the attention of an 0b10 checkpoint 2830 | -5/Upper Caves | Lost 4 parts (1p3u) 2867 | -5/Upper Caves | Learned Factory emergency access door positions 2896 | -5/Upper Caves | Discovered new exit (range 11) 2903 | -5/Upper Caves | Entered Zhirov 2903 | -5/Zhirov | Discovered new exit (range 3) 2908 | -5/Zhirov | Met Zhirov 2916 | -5/Zhirov | Zhirov requested help retrieving the SGEMP Prototype 2920 | -5/Zhirov | Found Alien Artifact 2924 | -5/Zhirov | Found Alien Artifact 2924 | -5/Zhirov | Identified Integrated Dissipator 2924 | -5/Zhirov | Installed Integrated Dissipator, increased core heat dissipation (+20) 3036 | -5/Zhirov | Entered Proximity Caves 3057 | -4/Proximity Caves | Learned Research terminal intel 3060 | -4/Proximity Caves | Attracted the attention of an 0b10 checkpoint 3103 | -4/Proximity Caves | Discovered exit to Factory (range 10) 3106 | -4/Proximity Caves | Entered Factory 3106 | -4/Factory | Evolved 2 slots: Propulsion x1, Utility x1 3107 | -4/Factory | Identified exit to Armory 3109 | -4/Factory | Loaded intel: 242 machine locations 3110 | -4/Factory | Loaded intel: 188 non-interactive machine locations 3146 | -4/Factory | Retrieved Zion intel report: Component Stockpiles 3147 | -4/Factory | Zion Heavy squad teleported in 3161 | -4/Factory | Zion Light squad teleported in 3184 | -4/Factory | Discovered new exit (range 10) 3200 | -4/Factory | Entered Extension 3200 | -4/Extension | Accompanied by 4 allies 3201 | -4/Extension | Loaded intel: 39 machine locations 3221 | -4/Extension | Zion Hacker squad teleported in 3225 | -4/Extension | Zion Fire squad teleported in 3260 | -4/Extension | Rescued a captive Derelict 3261 | -4/Extension | Rescued a captive Derelict 3263 | -4/Extension | Rescued A7 3266 | -4/Extension | Rescued a captive Derelict 3275 | -4/Extension | Rescued a captive Derelict 3287 | -4/Extension | Retrieved Zion intel report: Depthwide Sectors/-1 3288 | -4/Extension | Retrieved Zion intel report: Trap Installations 3399 | -4/Extension | Rescued a captive Derelict 3435 | -4/Extension | Rescued a captive Derelict 3438 | -4/Extension | Rescued a captive Derelict 3440 | -4/Extension | Rescued a captive Derelict 3477 | -4/Extension | Rescued a captive Derelict 3496 | -4/Extension | Discovered new exit (range 10) 3497 | -4/Extension | Discovered new exit (range 6) 3537 | -4/Extension | Entered Cetus 3537 | -4/Cetus | Accompanied by 1 ally (A7) 3538 | -4/Cetus | Loaded intel: 24 machine locations 3541 | -4/Cetus | Spotted Cetus Guard 3541 | -4/Cetus | Spotted Cetus Guard 3541 | -4/Cetus | Spotted Cetus Guard 3541 | -4/Cetus | Spotted Cetus Guard 3547 | -4/Cetus | Acquired a Cetus Manufacturing Module code from A7 3552 | -4/Cetus | Started Cetus Manufacturing Module 3577 | -4/Cetus | Manufactured an Enhanced Grunt 3591 | -4/Cetus | Escorted A7 to Cetus Mainframe 3592 | -4/Cetus | Cetus Manufacturing Module disabled 3599 | -4/Cetus | Discovered new exit (range 15) 3605 | -4/Cetus | Spotted Cetus Guard 3605 | -4/Cetus | Spotted Cetus Guard 3606 | -4/Cetus | Spotted Cetus Guard 3624 | -4/Cetus | Entered Archives 3624 | -4/Archives | Accompanied by 1 ally (A7) 3625 | -4/Archives | Loaded intel: 8 machine locations 3631 | -4/Archives | Received a hacking code to weaken MAIN.C 3636 | -4/Archives | Unable to access archive contents 3637 | -4/Archives | Discovered new exit (range 16) 3638 | -4/Archives | Discovered new exit (range 13) 3640 | -4/Archives | Entered Hub_04(d) 3641 | -4/Hub_04(d) | Loaded intel: 84 machine locations 3646 | -4/Hub_04(d) | Zion Heavy squad teleported in 3648 | -4/Hub_04(d) | Discovered new exit (range 14) 3666 | -4/Hub_04(d) | Network Hub disabled 3666 | -4/Hub_04(d) | Network Hub disabled 3675 | -4/Hub_04(d) | Spotted Lightning 3680 | -4/Hub_04(d) | Spotted Lightning 3680 | -4/Hub_04(d) | Spotted Lightning 3680 | -4/Hub_04(d) | Spotted Lightning 3695 | -4/Hub_04(d) | Discovered new exit (range 12) 3703 | -4/Hub_04(d) | Network Hub disabled 3703 | -4/Hub_04(d) | Spotted Lightning 3707 | -4/Hub_04(d) | System corruption reached 10% 3710 | -4/Hub_04(d) | Network Hub disabled 3710 | -4/Hub_04(d) | Identified Transdimensional Reconstructor 3710 | -4/Hub_04(d) | Warped through subspace 3710 | -4/Hub_04(d) | Spotted Lightning 3713 | -4/Hub_04(d) | Spotted Lightning 3716 | -4/Hub_04(d) | Crushed by falling debris 3717 | -4/Hub_04(d) | Entered Research 3717 | -3/Research | Evolved 2 slots: Propulsion x1, Utility x1 3719 | -3/Research | Loaded intel: 106 machine locations 3720 | -3/Research | Loaded intel: 23 terminal locations 3741 | -3/Research | Lost 12 parts (6n3u3w) 3745 | -3/Research | Zion Light squad teleported in 3814 | -3/Research | Retrieved Zion intel report: Branch Access 3814 | -3/Research | Identified exit to Testing 3825 | -3/Research | Entered Testing 3826 | -3/Testing | Loaded intel: 90 machine locations 3858 | -3/Testing | Found Prototype Energy Cannon 3858 | -3/Testing | Identified Null Cannon 3920 | -3/Testing | Found Prototype Hackware 3920 | -3/Testing | Identified System Mapper 3928 | -3/Testing | Spotted Striker 3954 | -3/Testing | Spotted Striker 3955 | -3/Testing | Found Adv. Micro-nuke Launcher 3965 | -3/Testing | Spotted Alpha 7 3972 | -3/Testing | Stole the SGEMP Prototype 3998 | -3/Testing | Core integrity fell below 50% 4038 | -3/Testing | Intercept squad dispatched 4042 | -3/Testing | Core integrity fell below 20% 4043 | -3/Testing | Spotted Tracker 4046 | -3/Testing | Lost 8 parts (2n6u) 4048 | -3/Testing | Spotted Tracker 4051 | -3/Testing | Destroyed by Tracker with Linked Autogun Last Messages --------------- 03976_ Alpha 7 Adv. Dynamic Insulation System blasted off. 03977_ Slug penetrates Wall. 03979_ Triggered Blade Trap. 03979_ Massive razor-sharp blades shoot up from within the floor. 03979_ Plasma Sword severed. 03979_ Imp. System Shield severed. 03980_ Penetrated by Slug. 03997_ Adv. Signal Interpreter destroyed. 04012_ System Shield destroyed. 04015_ Slammed into Striker. 04015_ Launcher Guidance Computer destroyed. 04016_ Slammed into Striker. 04035_ ALERT: Hostiles spotted, dispatching reinforcements to Terminal T007. 04038_ ALERT: Reliable intel has pinpointed LRC-V3, intercept squad en route. 04038_ C-55 Analyst calibrates the Catalytron. Tracker: "THREAT CONFIRMED. DEPLOY COMBAT PROGRAMMER." 04045_ Detecting system override signal. 04050_ EMDS Slug penetrates Wall. Map ----- +----------------------------------------------------+ | ?????????????????????????????"""?"""?????????????? | | ?????????????????????????????"""?"""?????????????? | | ?????????????????????????????????????????????????? | | ?????????????????????????????????????????????????? | | ??????????????"""?"""????????????????????????????? | | ??????????????"""?"""????????????????????????????? | | ??????????????"""?"""????????????????????????????? | | ?????????????????????????????????????????????????? | | ??????????????"""?"""????""?"""?"""""????????????? | | ??????????????"""?"""????""F"""?"""""??????""""??? | | ??????????????"""?"""??g """""?"""""??????""R""?? | | ??????????????????????# ?????????????""?""?? | | ??????????????????#####w ????????????????? | | ??????????"""????? cgg = ????????"""?""" | | ?????????""F""???? g g ??????"""?""" | | ?????????""?""???? !!! ???????"""?""" | | ???????????????""""" R!! ??????????????? | | ????????????? """"" !! ]] #??????????????? | | ????????????o """"" ]= #??????????????? | | ????????????? ???????????????? | | ??????????????? ! ????????????????? | | ????????""?""???? ??????????????????? | | ????????""T""?????? ???????????????????? | | ?????????"""????????? ????????????????????? | | ??????????####????????# #?????????????????????? | | ?????????? #????????# @ #?????????????????????? | | #####??#? #????????# #?????????????????????? | | # #??# ###+?????# #?????????????????????? | | # #??# """ # ?????#s #?????????????????????? | | # #### """ # ?????#K #??????????""""???????? | | + """ # ?????# #???????????"?"???????? | | ## """ # ?????# #??????""?????????????? | | ## """ # ????# #??????""""??"""??????? | | ## # ????# #??????"""""?"?"??????? | | ## ! #! ????# #?????????"??"""??????? | | #? # ????# s #?????????????????????? | | #?? #? ????# #?????????????????????? | | ####/######+#####K ######????????????????? | | ^ #"?"""????""?????? | | #T?"""????""?????? | | !!!^""" """ #"?"""????S"?????? | | !!! """ """ +????????"""?????? | | !! """ R" ##########+### #??"""???"""?????? | | """ #????????????? #??"""???"""?????? | | *! """ "" #???????"""??? #??"""???????????? | | *! """ #???????"""????####????????????????? | | * """ #???????"""????????????????????????? | | ? #??????????????????????????????????? | | ? #???????"""????????????????????????? | | ####??##+####+#???????"""????????????????????????? | +----------------------------------------------------+ Best States ------------- Heat Dissipation 85 Energy Generation 25 Energy Capacity 1100 Matter Stores 300 Matter Capacity 300 Sight Range 16 Robot Scan Range 20 Terrain Scan Density 10 Power Amplification 30 Armor Coverage 375 Power Shielding 66 Evasion (%) 74 Targeting Accuracy 8 Melee Accuracy 8 Launcher Accuracy 20 Recoil Reduction 1 Offensive Hacking 22 Defensive Hacking 34 Item Schematics ----------------- Energy Well | -7/Zion | Archive Adv. Assault Cannon | -7/Zion | Archive Lyr. Light Armor Plating | -7/Zion | Archive Remote Shield | -7/Zion | Archive Hrd. Heavy Armor Plating | -7/Zion | Archive Imp. System Shield | -7/Zion | Archive Transmission Jammer | -7/Zion | Archive KE Penetrator | -7/Zion | Archive Tesla Rifle | -7/Zion | Archive Imp. Shield Generator | -7/Zion | Archive Proton Cannon | -7/Zion | Archive Imp. Carbon-fiber Leg | -7/Zion | Archive Plasma Rifle | -7/Zion | Archive Beamcaster | -7/Zion | Archive Mak. System Shield | -7/Zion | Archive Combat Drone Bay | -6/Data Miner | Free Lgt. Regenerative Plating | -6/Data Miner | Free Cld. Gravmag System | -6/Data Miner | Free Exp. Heat Sink | -6/Data Miner | Free Enh. Force Rifle | -6/Data Miner | Free Field Propulsion Array | -6/Data Miner | Free Adv. Focal Shield | -6/Data Miner | Free Arm. Medium Treads | -6/Data Miner | Free Imp. Heavy Treads | -6/Data Miner | Free Hvy. Disruptor Cannon | -6/Data Miner | Free Adv. Component Analysis Suite | -6/Data Miner | Free Robot Schematics ------------------ Y-45 Defender | -7/Zion | Archive G-47 Trooper | -7/Zion | Archive W-25 Informer | -7/Zion | Archive H-66 Slayer | -6/Data Miner | Free B-48 Gladiator | -6/Data Miner | Free Fabricated ------------ Nothing Alien Tech Used ----------------- Integrated Dissipator Transdimensional Reconstructor Achievements -------------- 404 Deconstruction Main Advantage Short-term Sacrifices Challenges ------------ None Game ------ Seed MetafieldPointDevice Manual? 0 Play Time 01:11:34 Cumulative 198.1 hours Start 2023.05.11 @ 17:30:55 End 2023.05.11 @ 18:46:45 Sessions 1 Manual Loads 0 Difficulty Rogue Special Mode None Game No. 557 Rogue 557 Adventurer 0 Explorer 0 Win Type - Total 9 Types 7/0/1/1/0/0/0/0/0 Lore% 79 Gallery% 77 Achievement% 70 Wizard Run 0 Options --------- ASCII 0 Keyboard 0 Movement Mouse Keybinds 0 Fullscreen 1 Font 16/SmallcapsGlow Map View 75x55 Tactical HUD 1 Map Filters NONE Filters NONE Steam 1 RUN: d7d75060-010c-4264-ae2a-1d71e6935955